fUSD/lending_fUSD_20240301
["ID","MTS","AMOUNT","RATE_DAILY","PERIOD"]
[315981733,1709313053903,-500.0,0.00022356,2]
[315981734,1709313053912,-525.27,0.00022356,2]
[315981736,1709313053922,-965.88,0.00022356,2]
[315981738,1709313053932,-1637.41,0.00022356,2]
[315981739,1709313053941,-500.0,0.00022356,2]
[315981740,1709313053950,-1142.45645831,0.00022356,2]
[315981741,1709313053965,-1136.43354169,0.00022356,2]
[315981742,1709313053974,-2786.5,0.00022356,2]
[315981743,1709313053983,-632.98,0.00022356,2]
[315981744,1709313053993,-500.0,0.00022356,2]
[315981745,1709313054002,-500.0,0.00022356,2]
[315981746,1709313054011,-518.19,0.00022356,2]
[315981747,1709313054020,-2390.84,0.00022356,2]
[315981748,1709313054030,-2619.48,0.00022356,2]
[315981749,1709313054039,-565.4,0.00022356,2]
[315981750,1709313054049,-641.57,0.00022356,2]
[315981751,1709313054058,-534.56,0.00022356,2]
[315981752,1709313054069,-500.0,0.00022356,2]
[315981753,1709313054079,-1522.64,0.00022356,2]
[315981754,1709313054090,-500.0,0.00022356,2]
[315981755,1709313054101,-500.0,0.00022356,2]
[315981756,1709313054111,-500.0,0.00022356,2]
[315981757,1709313054121,-1008.17,0.00022356,2]
[315981758,1709313054131,-162.32722372,0.00022356,2]
[315981759,1709313054141,-991.41,0.00022356,2]
[315981760,1709313054150,-500.0,0.00022356,2]
[315981761,1709313054160,-500.0,0.00022356,2]
[315981762,1709313054170,-500.0,0.00022356,2]
[315981763,1709313054179,-948.23,0.00022356,2]
[315981764,1709313054188,-151.0,0.00022356,7]
[315981765,1709313054199,-500.0,0.00022356,2]
[315981766,1709313054210,-500.0,0.00022356,2]
[315981767,1709313054219,-2296.1,0.00022356,2]
[315981768,1709313054229,-179.05558,0.00022356,7]
[315981769,1709313054239,-950.49,0.00022356,2]
[315981770,1709313054249,-6919.50790461,0.00022374,2]
[315981772,1709313098620,1000.0,0.000251,120]
[315981773,1709313128327,155.8887885,0.00025099,120]
[315981774,1709313422256,-150.0,0.00026867,120]
[315981776,1709313830599,96228.8921511,0.0001401,2]
[315981777,1709313939017,155.0,0.0001401,2]
[315981778,1709313952981,155.0,0.0001401,2]
[315981779,1709313980992,155.0,0.0001401,2]
[315981780,1709313996983,155.0,0.0001401,2]
[315981781,1709314018995,155.0,0.0001401,2]
[315981782,1709314034982,232.71898821,0.0001401,2]
[315981797,1709314233864,-230.84148984,0.00015487,2]
[315981798,1709314233876,-155.0,0.00015487,2]
[315981799,1709314233885,-1041.54287824,0.00015488,2]
[315981800,1709314233895,-1285.52369914,0.00015489,5]
[315981801,1709314233904,-363.34322629,0.0001549,2]
[315981802,1709314233913,-1057.72421204,0.00015587,2]
[315981803,1709314233923,-150.0,0.00015587,2]
[315981804,1709314233933,-702.4987408,0.00015588,2]
[315981805,1709314233942,-527.73427123,0.00015588,2]
[315981806,1709314233953,-2138.99822812,0.00015588,2]
[315981807,1709314233962,-423.02975116,0.00015589,2]
[315981808,1709314233971,-6209.1226187,0.000168,2]
[315981809,1709314233981,-204.0,0.00016832,2]
[315981810,1709314233990,-966.41,0.00016965,2]
[315981811,1709314234000,-2994.7473,0.00017045,2]
[315981812,1709314234010,-156.10825117,0.00017253,2]
[315981813,1709314234019,-17455.96,0.00017253,2]
[315981814,1709314234029,-2180.47,0.00017253,2]
[315981815,1709314234039,-156.10825108,0.00017522,2]
[315981816,1709314234048,-499.99,0.00017522,2]
[315981817,1709314234057,-447.36601547,0.00017575,2]
[315981818,1709314234066,-150.0,0.00017715,2]
[315981819,1709314234076,-156.10825108,0.00017791,2]
[315981820,1709314234085,-156.10825108,0.0001806,2]
[315981821,1709314234094,-167.05924673,0.00018263,2]
[315981822,1709314234105,-156.10825108,0.00018329,2]
[315981823,1709314234114,-156.10825108,0.00018598,2]
[315981824,1709314234125,-150.0,0.0001868,2]
[315981825,1709314234134,-314.47,0.00018684,2]
[315981826,1709314234143,-200.0,0.00018691,2]
[315981827,1709314234152,-3287.55,0.00018715,2]
[315981828,1709314234161,-200.0,0.00018751,2]
[315981829,1709314234170,-23890.0,0.00018766,2]
[315981830,1709314234179,-500.0,0.00018824,2]
[315981831,1709314234189,-1000.0,0.00018828,2]
[315981832,1709314234199,-392.0,0.00018834,2]
[315981833,1709314234208,-250.0,0.00018849,2]
[315981834,1709314234218,-156.10825108,0.00018867,2]
[315981835,1709314234227,-1852.42,0.00018875,2]
[315981836,1709314234237,-500.0,0.00018891,2]
[315981837,1709314234246,-204.0,0.0001899,4]
[315981838,1709314234255,-15645.02,0.00018994,2]
[315981839,1709314234265,-7049.9,0.00019018,2]
[315981840,1709314234274,-200.0,0.00019037,2]
[315981841,1709314234283,-2201.23,0.0001906,2]
[315981842,1709314234292,-156.10825108,0.00019136,2]
[315981843,1709314234302,-516.52,0.00019142,2]
[315981844,1709314234312,-250.0,0.00019178,2]
[315981846,1709314234321,-250.0,0.00019178,2]
[315981848,1709314234331,-516.52,0.00019194,2]
[315981850,1709314234340,-966.41,0.00019228,2]
[315981852,1709314234349,-516.52,0.00019247,2]
[315981854,1709314234360,-1026.31096852,0.00019286,2]
[315981856,1709314234370,-3335.46,0.00019286,2]
[315981858,1709314234382,-516.52,0.00019299,2]
[315981861,1709314234392,-516.52,0.00019352,2]
[315981864,1709314234403,-516.52,0.00019404,2]
[315981867,1709314234412,-156.10825108,0.00019405,2]
[315981869,1709314234421,-516.52,0.00019457,2]
[315981871,1709314234430,-516.52,0.00019509,2]
[315981873,1709314234439,-516.52,0.00019562,2]
[315981875,1709314234447,-516.52,0.00019614,2]
[315981877,1709314234456,-516.52,0.00019667,2]
[315981879,1709314234465,-156.10825108,0.00019674,2]
[315981881,1709314234474,-516.52,0.00019719,2]
[315981883,1709314234484,-516.52,0.00019772,2]
[315981885,1709314234493,-516.52,0.00019824,2]
[315981887,1709314234503,-516.52,0.00019877,2]
[315981890,1709314234513,-1822.59066102,0.000199,2]
[315981892,1709314234522,-516.52,0.00019929,2]
[315981895,1709314234531,-156.10825108,0.00019943,2]
[315981897,1709314234540,-516.52,0.00019982,2]
[315981899,1709314234550,-249.17018505,0.0002,2]
[315981901,1709314234559,-4822.7177375,0.0002,2]
[315981903,1709314234569,-184.63880356,0.00020033,2]
[315981905,1709314234578,-516.52,0.00020034,2]
[315981907,1709314234587,-165.7,0.00020064,2]
[315981909,1709314234596,-150.02,0.00020072,2]
[315981911,1709314234605,-169.38,0.00020075,2]
[315981913,1709314234614,-516.52,0.00020087,2]
[315981915,1709314234626,-516.52,0.00020139,2]
[315981917,1709314234635,-156.10825108,0.00020212,2]
[315981919,1709314234645,-150.02,0.00020273,2]
[315981921,1709314234654,-271.96,0.00020388,2]
[315981923,1709314234663,-150.02,0.00020473,2]
[315981925,1709314234673,-156.10825108,0.00020481,2]
[315981927,1709314234682,-171.24,0.00020507,2]
[315981929,1709314234691,-1822.59066101,0.00020535,2]
[315981931,1709314234700,-150.02,0.00020674,2]
[315981933,1709314234710,-156.10825108,0.0002075,2]
[315981935,1709314234719,-150.02,0.00020875,2]
[315981937,1709314234729,-150.0,0.00020936,2]
[315981939,1709314234738,-156.10825108,0.00021019,2]
[315981941,1709314234747,-166.03,0.00021043,3]
[315981943,1709314234757,-498.11,0.00021043,3]
[315981945,1709314234766,-20031.75565759,0.00021052,2]
[315981947,1709314234775,-41414.0,0.00021053,2]
[315981949,1709314234786,-150.02,0.00021076,2]
[315981952,1709314234797,-204.0,0.00021149,7]
[315981954,1709314234806,-1000.0,0.00021181,2]
[315981956,1709314234817,-150.02,0.00021276,2]
[315981958,1709314234826,-156.10825108,0.00021288,2]
[315981960,1709314234835,-690.0,0.00021375,2]
[315981962,1709314234845,-150.0,0.00021384,2]
[315981964,1709314234855,-271.96,0.00021407,2]
[315981966,1709314234865,-14895.96481621,0.0002144,6]
[315981968,1709314234876,-3304.65355905,0.00021443,6]
[315981970,1709314234885,-1768.78349318,0.00021444,6]
[315981972,1709314234894,-12196.60516902,0.00021446,6]
[315981975,1709314234912,-622.67114989,0.00021446,6]
[315981979,1709314234942,-2076.6884973,0.00021446,6]
[315981981,1709314234951,-1956.08878294,0.00021449,6]
[315981983,1709314234963,-1348.56477611,0.00021449,6]
[315981985,1709314234973,-3304.65355905,0.00021453,6]
[315981987,1709314234982,-3287.55,0.00021455,2]
[315981989,1709314234991,-37001.54542886,0.00021457,6]
[315981992,1709314235001,-1768.78349318,0.00021466,6]
[315981994,1709314235010,-1768.78349318,0.0002147,6]
[315981996,1709314235019,-13388.7901136,0.00021477,6]
[315981998,1709314235034,-1117.95081738,0.00021477,6]
[315982001,1709314235051,-20885.7736936,0.00021477,6]
[315982003,1709314235062,-1609.03080428,0.00021477,6]
[315982005,1709314235072,-150.02,0.00021477,2]
[315982007,1709314235081,-1805.89026163,0.00021478,6]
[315982279,1709314237607,-10050.31118545,0.00021478,6]
[315982282,1709314237621,-3039.76336913,0.00021478,6]
[315982284,1709314237631,-33857.50022774,0.00021483,6]
[315982303,1709314237800,-3089.0,0.00021483,6]
[315982305,1709314237813,-55.04520112,0.00021483,6]
[315982307,1709314237823,-1768.78349318,0.00021489,6]
[315982309,1709314237833,-3304.65355905,0.00021492,6]
[315982311,1709314237842,-966.41,0.00021492,2]
[315982313,1709314237851,-8243.52124488,0.00021494,6]
[315982315,1709314237864,-14629.82184597,0.00021494,6]
[315982317,1709314237878,-14128.20233801,0.00021494,6]
[315982319,1709314237887,-12397.11004144,0.00021496,6]
[315982322,1709314237898,-2498.85477477,0.00021496,6]
[315982324,1709314237907,-156.10825108,0.00021557,2]
[315982326,1709314237916,-150.0,0.00021621,2]
[315982328,1709314237925,-1454.02757601,0.00021625,2]
[315982330,1709314237937,-10013.52177223,0.00021625,2]
[315982332,1709314237946,-150.02,0.00021678,2]
[315982334,1709314237955,-2536.44135683,0.000218,2]
[315982336,1709314237966,-3911.51684317,0.000218,2]
[315982338,1709314237975,-2958.5391,0.000218,2]
[315982340,1709314237984,-2442.4602,0.000218,2]
[315982342,1709314237993,-5000.0,0.00021817,2]
[315982344,1709314238002,-1382.00430526,0.00021817,2]
[315982346,1709314238011,-508.80355073,0.00021817,2]
[315982349,1709314238022,-1313.78711028,0.00021817,2]
[315982351,1709314238031,-802.55282463,0.00021817,2]
[315982353,1709314238040,-156.10825108,0.00021826,2]
[315982355,1709314238049,-150.02,0.00021878,2]
[315982357,1709314238058,-1000.0,0.00021899,5]
[315982358,1709314238067,-1339.47007049,0.000219,2]
[315982361,1709314238080,-160.52992951,0.000219,2]
[315982363,1709314238090,-7000.0,0.000219,2]
[315982365,1709314238099,-236.56200007,0.000219,2]
[315982367,1709314238109,-2354.16254395,0.00021916,2]
[315982369,1709314238118,-279.63,0.00021917,2]
[315982371,1709314238132,-500.0,0.00021917,2]
[315982373,1709314238141,-230.69522242,0.00021917,2]
[315982375,1709314238150,-620.61,0.00021917,2]
[315982377,1709314238160,-500.0,0.00021917,2]
[315982379,1709314238169,-500.0,0.00021917,2]
[315982381,1709314238179,-500.0,0.00021917,2]
[315982383,1709314238189,-500.0,0.00021917,2]
[315982385,1709314238199,-500.0,0.00021917,2]
[315982387,1709314238209,-500.0,0.00021917,2]
[315982389,1709314238218,-496.45596413,0.00021917,2]
[315982391,1709314238231,-3.54403587,0.00021917,2]
[315982393,1709314238240,-515.56165081,0.00021917,2]
[315982395,1709314238249,-500.0,0.00021917,2]
[315982397,1709314238259,-517.21505423,0.00021917,2]
[315982399,1709314238269,-500.0,0.00021917,2]
[315982401,1709314238278,-500.0,0.00021917,2]
[315982403,1709314238287,-500.0,0.00021917,2]
[315982405,1709314238296,-500.0,0.00021917,2]
[315982407,1709314238306,-500.0,0.00021917,2]
[315982409,1709314238315,-508.19643274,0.00021917,2]
[315982411,1709314238324,-500.0,0.00021917,2]
[315982413,1709314238333,-500.0,0.00021917,2]
[315982415,1709314238343,-500.0,0.00021917,2]
[315982417,1709314238352,-500.0,0.00021917,2]
[315982419,1709314238361,-500.0,0.00021917,2]
[315982421,1709314238371,-393.74784972,0.00021917,2]
[315982424,1709314238389,-158.26742674,0.00021917,2]
[315982426,1709314238398,-500.0,0.00021917,2]
[315982428,1709314238407,-500.0,0.00021917,2]
[315982430,1709314238417,-500.0,0.00021917,2]
[315982432,1709314238426,-500.0,0.00021917,2]
[315982434,1709314238435,-500.0,0.00021917,2]
[315982436,1709314238444,-500.0,0.00021917,2]
[315982438,1709314238452,-500.0,0.00021917,2]
[315982440,1709314238461,-500.0,0.00021917,2]
[315982442,1709314238471,-500.0,0.00021917,2]
[315982444,1709314238480,-500.0,0.00021917,2]
[315982446,1709314238489,-500.0,0.00021917,2]
[315982448,1709314238498,-500.0,0.00021917,2]
[315982450,1709314238510,-500.0,0.00021917,2]
[315982452,1709314238519,-500.0,0.00021917,2]
[315982454,1709314238528,-500.0,0.00021917,2]
[315982456,1709314238538,-500.0,0.00021917,2]
[315982458,1709314238547,-500.0,0.00021917,2]
[315982460,1709314238556,-500.0,0.00021917,2]
[315982462,1709314238565,-500.0,0.00021917,2]
[315982464,1709314238575,-500.0,0.00021917,2]
[315982466,1709314238585,-104.2748519,0.00021917,2]
[315982469,1709314238601,-281.09119989,0.00021917,2]
[315982471,1709314238613,-114.63394821,0.00021917,2]
[315982473,1709314238622,-500.0,0.00021917,2]
[315982475,1709314238635,-500.0,0.00021917,2]
[315982477,1709314238645,-500.0,0.00021917,2]
[315982479,1709314238654,-500.0,0.00021917,2]
[315982481,1709314238663,-500.0,0.00021917,2]
[315982483,1709314238672,-500.0,0.00021917,2]
[315982485,1709314238682,-500.0,0.00021917,2]
[315982487,1709314238691,-500.0,0.00021917,2]
[315982489,1709314238701,-500.0,0.00021917,2]
[315982492,1709314238710,-500.0,0.00021917,2]
[315982494,1709314238719,-500.0,0.00021917,2]
[315982496,1709314238729,-500.0,0.00021917,2]
[315982497,1709314238738,-500.0,0.00021917,2]
[315982499,1709314238747,-500.0,0.00021917,2]
[315982501,1709314238757,-500.0,0.00021917,2]
[315982503,1709314238767,-500.0,0.00021917,2]
[315982505,1709314238777,-450.85965172,0.00021917,2]
[315982508,1709314238799,-49.14034828,0.00021917,2]
[315982510,1709314238809,-500.0,0.00021917,2]
[315982512,1709314238819,-500.0,0.00021917,2]
[315982514,1709314238828,-500.0,0.00021917,2]
[315982516,1709314238839,-500.0,0.00021917,2]
[315982518,1709314238848,-500.0,0.00021917,2]
[315982520,1709314238857,-500.0,0.00021917,2]
[315982522,1709314238867,-500.0,0.00021917,2]
[315982524,1709314238879,-290.9258384,0.00021917,2]
[315982526,1709314238889,-500.0,0.00021917,2]
[315982528,1709314238899,-500.0,0.00021917,2]
[315982530,1709314238908,-299.13187706,0.00021917,2]
[315982532,1709314238917,-500.0,0.00021917,2]
[315982534,1709314238926,-199.7872982,0.00021917,2]
[315982683,1709314240233,-300.2127018,0.00021917,2]
[315982685,1709314240242,-500.0,0.00021917,2]
[315982687,1709314240251,-500.0,0.00021917,2]
[315982689,1709314240260,-500.0,0.00021917,2]
[315982691,1709314240269,-500.0,0.00021917,2]
[315982693,1709314240278,-751.14,0.00021917,2]
[315982695,1709314240287,-82.59224173,0.00021917,2]
[315982698,1709314240299,-417.40775827,0.00021917,2]
[315982700,1709314240308,-329.78013178,0.00021917,2]
[315982753,1709314241006,-170.21986822,0.00021917,2]
[315982755,1709314241015,-500.0,0.00021917,2]
[315982756,1709314241025,-500.0,0.00021917,2]
[315982758,1709314241035,-500.0,0.00021917,2]
[315982760,1709314241046,-500.0,0.00021917,2]
[315982762,1709314241056,-500.0,0.00021917,2]
[315982764,1709314241066,-155.0,0.00021917,2]
[315982766,1709314241075,-140.89413178,0.00021917,2]
[315982769,1709314241087,-359.10586822,0.00021917,2]
[315982771,1709314241096,-500.0,0.00021917,2]
[315982773,1709314241105,-500.0,0.00021917,2]
[315982775,1709314241114,-500.0,0.00021917,2]
[315982777,1709314241123,-500.0,0.00021917,2]
[315982779,1709314241140,-500.0,0.00021917,2]
[315982781,1709314241148,-500.0,0.00021917,2]
[315982783,1709314241158,-500.0,0.00021917,2]
[315982785,1709314241167,-500.0,0.00021917,2]
[315982787,1709314241177,-500.0,0.00021917,2]
[315982789,1709314241186,-500.0,0.00021917,2]
[315982790,1709314241195,-500.0,0.00021917,2]
[315982793,1709314241205,-500.0,0.00021917,2]
[315982794,1709314241216,-500.0,0.00021917,2]
[315982797,1709314241225,-500.0,0.00021917,2]
[315982799,1709314241233,-500.0,0.00021917,2]
[315982800,1709314241243,-500.0,0.00021917,2]
[315982802,1709314241252,-500.0,0.00021917,2]
[315982804,1709314241261,-500.0,0.00021917,2]
[315982806,1709314241270,-548.18032865,0.00021917,2]
[315982809,1709314241279,-500.0,0.00021917,2]
[315982811,1709314241289,-352.91594303,0.00021917,2]
[315982813,1709314241303,-133.85559824,0.00021917,2]
[315982815,1709314241313,-238.33255865,0.00021917,2]
[315982817,1709314241324,-261.66744135,0.00021917,2]
[315982819,1709314241333,-500.0,0.00021917,2]
[315982821,1709314241342,-519.15065872,0.00021917,2]
[315982823,1709314241351,-500.0,0.00021917,2]
[315982825,1709314241360,-500.0,0.00021917,2]
[315982827,1709314241369,-153.44254427,0.00021917,2]
[315982829,1709314241382,-500.0,0.00021917,2]
[315982831,1709314241391,-500.0,0.00021917,2]
[315982833,1709314241400,-500.0,0.00021917,2]
[315982835,1709314241409,-500.0,0.00021917,2]
[315982837,1709314241418,-247.67541005,0.00021917,2]
[315982839,1709314241427,-500.0,0.00021917,2]
[315982841,1709314241436,-500.0,0.00021917,2]
[315982843,1709314241445,-500.0,0.00021917,2]
[315982845,1709314241454,-500.0,0.00021917,2]
[315982847,1709314241464,-110.06735701,0.00021917,2]
[315982852,1709314241501,-262.52,0.00021917,2]
[315983188,1709314245183,-127.41264299,0.00021917,2]
[315983191,1709314245193,-500.0,0.00021917,2]
[315983194,1709314245202,-500.0,0.00021917,2]
[315983197,1709314245211,-500.0,0.00021917,2]
[315983200,1709314245221,-500.0,0.00021917,2]
[315983202,1709314245230,-500.0,0.00021917,2]
[315983204,1709314245239,-500.0,0.00021917,2]
[315983206,1709314245248,-579.02456159,0.00021917,2]
[315983208,1709314245257,-500.0,0.00021917,2]
[315983210,1709314245267,-500.0,0.00021917,2]
[315983212,1709314245277,-627.91,0.00021917,2]
[315983214,1709314245287,-500.0,0.00021917,2]
[315983216,1709314245296,-500.0,0.00021917,2]
[315983218,1709314245306,-500.0,0.00021917,2]
[315983220,1709314245316,-662.62,0.00021917,2]
[315983222,1709314245325,-500.0,0.00021917,2]
[315983224,1709314245335,-384.35,0.00021917,2]
[315983227,1709314245344,-500.0,0.00021917,2]
[315983229,1709314245353,-500.0,0.00021917,2]
[315983231,1709314245363,-573.37,0.00021917,2]
[315983233,1709314245372,-500.0,0.00021917,2]
[315983235,1709314245382,-500.0,0.00021917,2]
[315983237,1709314245391,-500.0,0.00021917,2]
[315983239,1709314245400,-482.42426341,0.00021917,2]
[315983241,1709314245409,-500.0,0.00021917,2]
[315983243,1709314245418,-500.0,0.00021917,2]
[315983245,1709314245427,-500.0,0.00021917,2]
[315983247,1709314245437,-500.0,0.00021917,2]
[315983249,1709314245446,-500.0,0.00021917,2]
[315983251,1709314245456,-301.22945575,0.00021917,2]
[315983253,1709314245464,-500.0,0.00021917,2]
[315983255,1709314245473,-500.0,0.00021917,2]
[315983257,1709314245483,-500.0,0.00021917,2]
[315983259,1709314245492,-500.0,0.00021917,2]
[315983261,1709314245501,-500.0,0.00021917,2]
[315983263,1709314245510,-500.0,0.00021917,2]
[315983265,1709314245519,-500.0,0.00021917,2]
[315983267,1709314245528,-379.63762581,0.00021917,2]
[315983269,1709314245538,-500.0,0.00021917,2]
[315983271,1709314245547,-500.0,0.00021917,2]
[315983273,1709314245557,-206.07607118,0.00021917,2]
[315983275,1709314245566,-150.0,0.00021917,2]
[315983277,1709314245576,-500.0,0.00021917,2]
[315983279,1709314245585,-500.0,0.00021917,2]
[315983281,1709314245594,-500.0,0.00021917,2]
[315983283,1709314245603,-605.14,0.00021917,2]
[315983286,1709314245613,-500.0,0.00021917,2]
[315983289,1709314245622,-500.0,0.00021917,2]
[315983292,1709314245631,-500.0,0.00021917,2]
[315983294,1709314245640,-653.54,0.00021917,2]
[315983296,1709314245649,-500.0,0.00021917,2]
[315983298,1709314245659,-500.0,0.00021917,2]
[315983300,1709314245668,-500.0,0.00021917,2]
[315983302,1709314245677,-500.0,0.00021917,2]
[315983304,1709314245690,-656.19,0.00021917,2]
[315983306,1709314245699,-613.83,0.00021917,2]
[315983308,1709314245709,-583.7,0.00021917,2]
[315983310,1709314245718,-500.0,0.00021917,2]
[315983312,1709314245728,-339.8276493,0.00021917,2]
[315983314,1709314245737,-500.0,0.00021917,2]
[315983316,1709314245750,-500.0,0.00021917,2]
[315983318,1709314245759,-500.0,0.00021917,2]
[315983319,1709314245768,-500.0,0.00021917,2]
[315983320,1709314245780,-516.48,0.00021917,2]
[315983321,1709314245789,-500.0,0.00021917,2]
[315983322,1709314245798,-500.0,0.00021917,2]
[315983323,1709314245808,-500.0,0.00021917,2]
[315983325,1709314245819,-500.0,0.00021917,2]
[315983327,1709314245829,-5281.63,0.00021917,2]
[315983329,1709314245839,-500.0,0.00021917,2]
[315983331,1709314245848,-797.77,0.00021917,2]
[315983333,1709314245857,-500.0,0.00021917,2]
[315983335,1709314245866,-500.0,0.00021917,2]
[315983337,1709314245876,-500.0,0.00021917,2]
[315983339,1709314245888,-910.41,0.00021917,2]
[315983340,1709314245897,-2696.07,0.00021917,2]
[315983342,1709314245906,-2488.81,0.00021917,2]
[315983344,1709314245916,-504.74,0.00021917,2]
[315983346,1709314245925,-500.0,0.00021917,2]
[315983348,1709314245935,-500.0,0.00021917,2]
[315983350,1709314245944,-500.0,0.00021917,2]
[315983352,1709314245954,-676.73,0.00021917,2]
[315983354,1709314245964,-878.7,0.00021917,2]
[315983356,1709314245973,-500.0,0.00021917,2]
[315983358,1709314245982,-500.0,0.00021917,2]
[315983360,1709314245991,-500.0,0.00021917,2]
[315983362,1709314246000,-500.0,0.00021917,2]
[315983364,1709314246009,-799.08,0.00021917,2]
[315983366,1709314246018,-500.0,0.00021917,2]
[315983368,1709314246028,-660.31,0.00021917,2]
[315983370,1709314246037,-1367.42,0.00021917,2]
[315983372,1709314246047,-500.0,0.00021917,2]
[315983374,1709314246056,-500.0,0.00021917,2]
[315983376,1709314246065,-675.85,0.00021917,2]
[315983378,1709314246074,-6703.97,0.00021917,2]
[315983380,1709314246083,-500.0,0.00021917,2]
[315983382,1709314246093,-500.0,0.00021917,2]
[315983384,1709314246102,-500.0,0.00021917,2]
[315983386,1709314246112,-1115.83,0.00021917,2]
[315983388,1709314246121,-549.04111028,0.00021917,2]
[315983390,1709314246133,-500.0,0.00021917,2]
[315983392,1709314246142,-500.0,0.00021917,2]
[315983394,1709314246152,-500.0,0.00021917,2]
[315983396,1709314246161,-500.0,0.00021917,2]
[315983398,1709314246170,-500.0,0.00021917,2]
[315983400,1709314246179,-500.0,0.00021917,2]
[315983402,1709314246189,-500.0,0.00021917,2]
[315983404,1709314246198,-500.0,0.00021917,2]
[315983406,1709314246208,-799.33,0.00021917,2]
[315983408,1709314246217,-1044.31,0.00021917,2]
[315983410,1709314246228,-500.0,0.00021917,2]
[315983411,1709314246238,-500.0,0.00021917,2]
[315983414,1709314246248,-2292.89,0.00021917,2]
[315983416,1709314246257,-1526.92,0.00021917,2]
[315983418,1709314246266,-225.74309345,0.00021917,2]
[315983421,1709314246287,-652.89690655,0.00021917,2]
[315983423,1709314246296,-500.0,0.00021917,2]
[315983425,1709314246305,-548.12,0.00021917,2]
[315983427,1709314246314,-500.0,0.00021917,2]
[315983429,1709314246324,-500.0,0.00021917,2]
[315983431,1709314246333,-500.0,0.00021917,2]
[315983433,1709314246342,-669.55,0.00021917,2]
[315983435,1709314246351,-742.99,0.00021917,2]
[315983437,1709314246360,-500.0,0.00021917,2]
[315983439,1709314246369,-500.0,0.00021917,2]
[315983441,1709314246378,-500.0,0.00021917,2]
[315983443,1709314246389,-500.0,0.00021917,2]
[315983445,1709314246398,-796.3,0.00021917,2]
[315983447,1709314246407,-428.98368911,0.00021917,2]
[315983449,1709314246417,-500.0,0.00021917,2]
[315983451,1709314246426,-500.0,0.00021917,2]
[315983453,1709314246435,-500.0,0.00021917,2]
[315983455,1709314246444,-500.0,0.00021917,2]
[315983457,1709314246453,-500.0,0.00021917,2]
[315983459,1709314246462,-634.7,0.00021917,2]
[315983461,1709314246471,-500.0,0.00021917,2]
[315983463,1709314246480,-590.51,0.00021917,2]
[315983465,1709314246490,-500.0,0.00021917,2]
[315983467,1709314246499,-236.34585878,0.00021917,2]
[315983469,1709314246508,-500.0,0.00021917,2]
[315983471,1709314246518,-500.29,0.00021917,2]
[315983473,1709314246528,-9455.57,0.00021917,2]
[315983475,1709314246537,-500.0,0.00021917,2]
[315983477,1709314246548,-369.28681034,0.00021917,2]
[315983479,1709314246558,-500.0,0.00021917,2]
[315983481,1709314246567,-1909.99,0.00021917,2]
[315983483,1709314246577,-617.13255606,0.00021917,2]
[315983484,1709314246587,-500.0,0.00021917,2]
[315983485,1709314246597,-500.0,0.00021917,2]
[315983486,1709314246606,-2736.17,0.00021917,2]
[315983487,1709314246616,-608.0,0.00021917,2]
[315983489,1709314246625,-500.0,0.00021917,2]
[315983491,1709314246637,-500.0,0.00021917,2]
[315983493,1709314246647,-1965.97,0.00021917,2]
[315983495,1709314246657,-607.24,0.00021917,2]